[Event "ESTCC 50 2019"]
[Site "Mali Losinj"]
[Date "2019.09.20"]
[Round "3.12"]
[White "Rodriguez Bernal, Herman"]
[Black "Tirkajla, Boris"]
[Result "0-1"]
[ECO "A85"]
[WhiteElo "1735"]
[BlackElo "2060"]
[Annotator "NA"]
[PlyCount "80"]
[EventDate "2019.09.18"]
[EventType "team-tourn"]
[EventCountry "CRO"]
[SourceTitle "playchess.com"]
[Source "ChessBase"]
[SourceQuality "1"]
[WhiteTeam "Spain"]
[BlackTeam "Croatia"]
[WhiteTeamCountry "ESP"]
[BlackTeamCountry "CRO"]
[TimeControl "40/5400+30:1800+30"]

1. d4 {[%emt 0:00:30]} f5 {[%emt 0:00:30]} 2. c4 {[%emt 0:03:30]} Nf6 {[%emt 0:01:30]} 3. Nc3 {[%emt 0:02:30]} g6 {[%emt 0:00:30]} 4. Bf4 {[%emt 0:02:30]} Bg7 {[%emt 0:01:30]} 5. Nf3 {[%emt 0:02:30]} O-O {[%emt 0:00:30]} 6. e3 {[%emt 0:07:30]} d6 {[%emt 0:01:30]} 7. Bd3 {[%emt 0:09:30]} e6 {[%emt 0:08:30]} 8. Qc2 {[%emt 0:01:30]} Nc6 {[%emt 0:00:30]} 9. a3 {[%emt 0:00:30]} Qe7 {[%emt 0:01:30]} 10. Bg5 {[%emt 0:02:30]} h6 {[%emt 0:04:30]} 11. Bxf6 {[%emt 0:00:30]} Qxf6 {[%emt 0:00:30]} 12. O-O-O {[%emt 0:05:30]} Qf7 {[%emt 0:08:30]} 13. Nd2 {[%emt 0:07:30]} Ne7 {[%emt 0:06:30]} 14. f4 {[%emt 0:13:30]} Bd7 {[%emt 0:10:30]} 15. Rhg1 {[%emt 0:00:30]} a6 {[%emt 0:06:30]} 16. g4 {[%emt 0:01:30]} Rab8 {[%emt 0:02:30]} 17. h4 {[%emt 0:11:30]} Kh8 {[%emt 0:04:30]} 18. Nf3 {[%emt 0:01:30]} fxg4 {[%emt 0:09:30]} 19. Rxg4 {[%emt 0:03:30]} e5 {[%emt 0:02:30]} 20. Rxg6 {[%emt 0:01:30]} Nxg6 {[%emt 0:02:30]} 21. Bxg6 {[%emt 0:00:30]} Bf5 {[%emt 0:00:30]} 22. Bxf5 {[%emt 0:03:59]} Qxf5 {[%emt 0:00:30]} 23. Qh2 {[%emt 0:01:06]} exf4 {[%emt 0:02:30]} 24. e4 {[%emt 0:00:14]} Qh5 {[%emt 0:03:30]} 25. Qf2 {[%emt 0:00:19]} b5 {[%emt 0:03:47]} 26. cxb5 {[%emt 0:01:01]} axb5 {[%emt 0:00:06]} 27. Nd5 {[%emt 0:00:24]} Qe8 {[%emt 0:03:40]} 28. Nd2 {[%emt 0:04:56]} c5 {[%emt 0:02:44]} 29. dxc5 {[%emt 0:01:54]} Rc8 {[%emt 0:02:00]} 30. Rg1 {[%emt 0:01:05]} Rxc5+ {[%emt 0:00:31]} 31. Kb1 {[%emt 0:00:01]} Qe5 {[%emt 0:00:35]} 32. Rxg7 {[%emt 0:02:24]} Kxg7 {[%emt 0:02:44]} 33. Qg2+ {[%emt 0:00:12]} Kh7 {[%emt 0:00:49]} 34. Qg4 {[%emt 0:00:21]} Rf7 {[%emt 0:03:59]} 35. Nb4 {[%emt 0:03:45]} Rg7 {[%emt 0:02:04]} 36. Qh3 {[%emt 0:01:00]} Qd4 {[%emt 0:00:30]} 37. Nb3 {[%emt 0:00:35]} Qxe4+ {[%emt 0:00:33]} 38. Ka2 {[%emt 0:02:15]} Re5 {[%emt 0:00:26]} 39. Nd2 {[%emt 0:01:20]} Qe3 {[%emt 0:00:29]} 40. Qh2 {[%emt 0:00:34]} f3 {[%emt 0:00:22]} 0-1

[Event "ESTCC 50 2019"]
[Site "Mali Losinj"]
[Date "2019.09.20"]
[Round "3.13"]
[White "Ledger, Andrew J"]
[Black "Druckenthaner, Andreas"]
[Result "0-1"]
[ECO "A42"]
[WhiteElo "2343"]
[BlackElo "2283"]
[Annotator "NA"]
[PlyCount "88"]
[EventDate "2019.09.18"]
[EventType "team-tourn"]
[EventCountry "CRO"]
[SourceTitle "playchess.com"]
[Source "ChessBase"]
[SourceQuality "1"]
[WhiteTeam "England"]
[BlackTeam "Austria"]
[WhiteTeamCountry "ENG"]
[BlackTeamCountry "AUT"]
[TimeControl "40/5400+30:1800+30"]

1. d4 {[%emt 0:00:30]} d6 {[%emt 0:00:30]} 2. c4 {[%emt 0:01:30]} g6 {[%emt 0:00:30]} 3. Nc3 {[%emt 0:00:30]} Bg7 {[%emt 0:00:30]} 4. e4 {[%emt 0:01:30]} e5 {[%emt 0:00:30]} 5. d5 {[%emt 0:05:30]} Nh6 {[%emt 0:02:30]} 6. h4 {[%emt 0:06:30]} c5 {[%emt 0:15:30]} 7. Bd3 {[%emt 0:05:30]} Qe7 {[%emt 0:09:30]} 8. Nge2 {[%emt 0:11:30]} Na6 {[%emt 0:07:30]} 9. Ng3 {[%emt 0:05:30]} Bd7 {[%emt 0:06:30]} 10. a3 {[%emt 0:02:30]} f6 {[%emt 0:06:30]} 11. Bc2 {[%emt 0:02:30]} Nf7 {[%emt 0:04:30]} 12. h5 {[%emt 0:03:30]} Bh6 {[%emt 0:01:30]} 13. Bxh6 {[%emt 0:00:30]} Nxh6 {[%emt 0:00:30]} 14. Ba4 {[%emt 0:01:30]} O-O-O {[%emt 0:03:30]} 15. Bxd7+ {[%emt 0:03:30]} Qxd7 {[%emt 0:02:30]} 16. Qd2 {[%emt 0:06:30]} Nf7 {[%emt 0:03:30]} 17. Nb5 {[%emt 0:06:30]} Kb8 {[%emt 0:02:30]} 18. Qa5 {[%emt 0:02:30]} Rc8 {[%emt 0:03:30]} 19. O-O-O {[%emt 0:04:30]} f5 {[%emt 0:01:30]} 20. Rd3 {[%emt 0:03:30]} f4 {[%emt 0:01:30]} 21. Ne2 {[%emt 0:03:30]} Qd8 {[%emt 0:05:30]} 22. Qa4 {[%emt 0:01:30]} Qg5 {[%emt 0:00:35]} 23. f3 {[%emt 0:04:00]} Qxg2 {[%emt 0:01:32]} 24. Re1 {[%emt 0:00:48]} Qf2 {[%emt 0:01:31]} 25. Kd1 {[%emt 0:02:07]} Ng5 {[%emt 0:04:33]} 26. Ng1 {[%emt 0:03:55]} Rhd8 {[%emt 0:02:11]} 27. Rb3 {[%emt 0:00:20]} Rc7 {[%emt 0:03:32]} 28. Nxc7 {[%emt 0:01:34]} Nxc7 {[%emt 0:00:05]} 29. Rc3 {[%emt 0:03:50]} gxh5 {[%emt 0:02:08]} 30. Qc2 {[%emt 0:00:35]} Qg3 {[%emt 0:01:02]} 31. b4 {[%emt 0:02:33]} h4 {[%emt 0:01:37]} 32. bxc5 {[%emt 0:00:03]} dxc5 {[%emt 0:00:03]} 33. Rb3 {[%emt 0:00:47]} h3 {[%emt 0:00:41]} 34. Ne2 {[%emt 0:00:44]} Qf2 {[%emt 0:01:42]} 35. Qb2 {[%emt 0:01:28]} Nxf3 {[%emt 0:00:48]} 36. Rxf3 {[%emt 0:01:39]} Qxf3 {[%emt 0:00:13]} 37. Qxe5 {[%emt 0:00:03]} h2 {[%emt 0:02:17]} 38. Qe7 {[%emt 0:00:27]} Re8 {[%emt 0:00:38]} 39. Qxh7 {[%emt 0:00:21]} Qd3+ {[%emt 0:01:15]} 40. Kc1 {[%emt 0:00:03]} Qxe4 {[%emt 0:01:03]} 41. Qxh2 {[%emt 0:30:51]} Qxc4+ {[%emt 0:30:33]} 42. Kb2 {[%emt 0:00:00]} f3 {[%emt 0:00:00]} 43. d6 {[%emt 0:00:00]} Rxe2+ {[%emt 0:00:00]} 44. Rxe2 {[%emt 0:00:00]} Qxe2+ {[%emt 0:00:00]} 0-1

[Event "ESTCC 50 2019"]
[Site "Mali Losinj"]
[Date "2019.09.20"]
[Round "3.14"]
[White "Opl, Klaus"]
[Black "Lewis, Andrew P"]
[Result "1-0"]
[ECO "B48"]
[WhiteElo "2207"]
[BlackElo "2294"]
[Annotator "NA"]
[PlyCount "63"]
[EventDate "2019.09.18"]
[EventType "team-tourn"]
[EventCountry "CRO"]
[SourceTitle "playchess.com"]
[Source "ChessBase"]
[SourceQuality "1"]
[WhiteTeam "Austria"]
[BlackTeam "England"]
[WhiteTeamCountry "AUT"]
[BlackTeamCountry "ENG"]
[TimeControl "40/5400+30:1800+30"]

1. e4 {[%emt 0:00:30]} c5 {[%emt 0:00:30]} 2. Nf3 {[%emt 0:00:00]} Nc6 {[%emt 0:00:00]} 3. d4 {[%emt 0:00:00]} cxd4 {[%emt 0:00:00]} 4. Nxd4 {[%emt 0:00:30]} e6 {[%emt 0:00:30]} 5. Nc3 {[%emt 0:00:00]} Qc7 {[%emt 0:00:30]} 6. Be3 {[%emt 0:00:00]} a6 {[%emt 0:00:00]} 7. Bd3 {[%emt 0:00:30]} Nf6 {[%emt 0:03:00]} 8. O-O {[%emt 0:01:30]} Ne5 {[%emt 0:06:30]} 9. h3 {[%emt 0:00:30]} Bc5 {[%emt 0:03:30]} 10. Qe2 {[%emt 0:00:30]} d6 {[%emt 0:03:30]} 11. f4 {[%emt 0:04:30]} Ng6 {[%emt 0:07:30]} 12. Kh1 {[%emt 0:03:30]} O-O {[%emt 0:03:30]} 13. Rae1 {[%emt 0:06:30]} Bd7 {[%emt 0:06:30]} 14. Bg1 {[%emt 0:04:30]} Qb6 {[%emt 0:16:30]} 15. e5 {[%emt 0:04:30]} Ne8 {[%emt 0:01:30]} 16. Rd1 {[%emt 0:10:30]} Qxb2 {[%emt 0:09:30]} 17. Rf3 {[%emt 0:05:30]} Nh4 {[%emt 0:19:56]} 18. Rg3 {[%emt 0:02:30]} g6 {[%emt 0:00:12]} 19. Be4 {[%emt 0:05:30]} Ng7 {[%emt 0:02:27]} 20. Rb1 {[%emt 0:03:30]} Qa3 {[%emt 0:01:00]} 21. Rd3 {[%emt 0:06:30]} Qa5 {[%emt 0:11:25]} 22. exd6 {[%emt 0:02:30]} Bxd4 {[%emt 0:00:59]} 23. Bxd4 {[%emt 0:00:30]} Nhf5 {[%emt 0:00:54]} 24. Bb6 {[%emt 0:04:30]} Qa3 {[%emt 0:00:43]} 25. Qe1 {[%emt 0:00:30]} Ba4 {[%emt 0:00:53]} 26. Nxa4 {[%emt 0:05:30]} Qxa4 {[%emt 0:00:13]} 27. d7 {[%emt 0:00:00]} Rad8 {[%emt 0:01:14]} 28. Qb4 {[%emt 0:05:00]} Qxc2 {[%emt 0:00:27]} 29. Rc3 {[%emt 0:04:30]} Qe2 {[%emt 0:00:28]} 30. Bxd8 {[%emt 0:00:30]} Rxd8 {[%emt 0:00:03]} 31. Bxf5 {[%emt 0:00:30]} Nxf5 {[%emt 0:00:30]} 32. Rc8 {[%emt 0:00:30]} 1-0

[Event "ESTCC 50 2019"]
[Site "Mali Losinj"]
[Date "2019.09.20"]
[Round "3.15"]
[White "Ledger, Dave J"]
[Black "Watzka, Horst"]
[Result "1/2-1/2"]
[ECO "C93"]
[WhiteElo "2134"]
[BlackElo "2187"]
[Annotator "NA"]
[PlyCount "66"]
[EventDate "2019.09.18"]
[EventType "team-tourn"]
[EventCountry "CRO"]
[SourceTitle "playchess.com"]
[Source "ChessBase"]
[SourceQuality "1"]
[WhiteTeam "England"]
[BlackTeam "Austria"]
[WhiteTeamCountry "ENG"]
[BlackTeamCountry "AUT"]
[TimeControl "40/5400+30:1800+30"]

1. e4 {[%emt 0:00:30]} e5 {[%emt 0:00:30]} 2. Nf3 {[%emt 0:00:00]} Nc6 {[%emt 0:00:00]} 3. Bb5 {[%emt 0:00:00]} a6 {[%emt 0:02:00]} 4. Ba4 {[%emt 0:00:30]} Nf6 {[%emt 0:03:30]} 5. O-O {[%emt 0:00:30]} Be7 {[%emt 0:01:30]} 6. Re1 {[%emt 0:00:30]} b5 {[%emt 0:01:30]} 7. Bb3 {[%emt 0:00:30]} d6 {[%emt 0:01:30]} 8. c3 {[%emt 0:03:30]} O-O {[%emt 0:01:30]} 9. h3 {[%emt 0:00:00]} h6 {[%emt 0:05:30]} 10. d4 {[%emt 0:02:00]} Re8 {[%emt 0:00:30]} 11. Nbd2 {[%emt 0:01:30]} Bf8 {[%emt 0:00:30]} 12. a3 {[%emt 0:03:30]} Bb7 {[%emt 0:03:30]} 13. d5 {[%emt 0:03:30]} Ne7 {[%emt 0:01:30]} 14. Nf1 {[%emt 0:08:30]} c6 {[%emt 0:02:30]} 15. dxc6 {[%emt 0:01:30]} Bxc6 {[%emt 0:00:30]} 16. Ng3 {[%emt 0:04:30]} Ng6 {[%emt 0:05:30]} 17. Qc2 {[%emt 0:10:30]} Qc7 {[%emt 0:02:30]} 18. a4 {[%emt 0:09:30]} Qb7 {[%emt 0:03:30]} 19. axb5 {[%emt 0:02:30]} axb5 {[%emt 0:02:30]} 20. Rxa8 {[%emt 0:01:30]} Rxa8 {[%emt 0:00:30]} 21. h4 {[%emt 0:06:30]} Re8 {[%emt 0:01:30]} 22. h5 {[%emt 0:03:30]} Nf4 {[%emt 0:00:30]} 23. Nh4 {[%emt 0:01:30]} N4xh5 {[%emt 0:02:30]} 24. Nxh5 {[%emt 0:00:30]} Nxh5 {[%emt 0:00:30]} 25. Ng6 {[%emt 0:05:30]} Nf6 {[%emt 0:00:30]} 26. f3 {[%emt 0:01:30]} Kh7 {[%emt 0:07:30]} 27. Nxf8+ {[%emt 0:00:30]} Rxf8 {[%emt 0:00:00]} 28. Be3 {[%emt 0:00:30]} Kg8 {[%emt 0:00:00]} 29. Qf2 {[%emt 0:05:30]} Qe7 {[%emt 0:06:30]} 30. Ra1 {[%emt 0:02:30]} Ra8 {[%emt 0:00:30]} 31. Rxa8+ {[%emt 0:01:30]} Bxa8 {[%emt 0:00:30]} 32. Qf1 {[%emt 0:00:00]} Bc6 {[%emt 0:00:30]} 33. Qa1 {[%emt 0:01:00]} Qb7 {[%emt 0:04:30]} 1/2-1/2

[Event "ESTCC 50 2019"]
[Site "Mali Losinj"]
[Date "2019.09.20"]
[Round "3.16"]
[White "Ernst, Michael"]
[Black "Nelson, Jonathan P"]
[Result "1/2-1/2"]
[ECO "A48"]
[WhiteElo "2199"]
[BlackElo "2183"]
[Annotator "NA"]
[PlyCount "34"]
[EventDate "2019.09.18"]
[EventType "team-tourn"]
[EventCountry "CRO"]
[SourceTitle "playchess.com"]
[Source "ChessBase"]
[SourceQuality "1"]
[WhiteTeam "Austria"]
[BlackTeam "England"]
[WhiteTeamCountry "AUT"]
[BlackTeamCountry "ENG"]
[TimeControl "40/5400+30:1800+30"]

1. d4 {[%emt 0:00:30]} Nf6 {[%emt 0:00:30]} 2. Bf4 {[%emt 0:00:00]} g6 {[%emt 0:00:30]} 3. Nf3 {[%emt 0:00:00]} Bg7 {[%emt 0:00:30]} 4. h3 {[%emt 0:00:00]} O-O {[%emt 0:00:30]} 5. e3 {[%emt 0:00:00]} d6 {[%emt 0:01:30]} 6. Be2 {[%emt 0:00:30]} Nfd7 {[%emt 0:02:30]} 7. O-O {[%emt 0:05:30]} e5 {[%emt 0:00:30]} 8. Bh2 {[%emt 0:00:30]} Nc6 {[%emt 0:01:30]} 9. c4 {[%emt 0:00:30]} h6 {[%emt 0:03:30]} 10. Nc3 {[%emt 0:01:30]} f5 {[%emt 0:00:30]} 11. dxe5 {[%emt 0:02:30]} dxe5 {[%emt 0:06:30]} 12. Qd5+ {[%emt 0:00:30]} Kh7 {[%emt 0:02:30]} 13. Rfd1 {[%emt 0:01:30]} Qe7 {[%emt 0:19:30]} 14. Qd2 {[%emt 0:05:30]} Qf7 {[%emt 0:00:30]} 15. Qd5 {[%emt 0:02:30]} Qe7 {[%emt 0:02:30]} 16. Qd2 {[%emt 0:04:30]} Qf7 {[%emt 0:00:30]} 17. Qd5 {[%emt 0:04:30]} Qe7 {[%emt 0:00:30]} 1/2-1/2

[Event "ESTCC 50 2019"]
[Site "Mali Losinj"]
[Date "2019.09.20"]
[Round "3.17"]
[White "Jackson, Sheila"]
[Black "Krebs, Johann"]
[Result "0-1"]
[ECO "A35"]
[WhiteElo "2046"]
[BlackElo "2226"]
[Annotator "NA"]
[PlyCount "62"]
[EventDate "2019.09.18"]
[EventType "team-tourn"]
[EventCountry "CRO"]
[SourceTitle "playchess.com"]
[Source "ChessBase"]
[SourceQuality "1"]
[WhiteTeam "England"]
[BlackTeam "Austria"]
[WhiteTeamCountry "ENG"]
[BlackTeamCountry "AUT"]
[TimeControl "40/5400+30:1800+30"]

1. e4 {[%emt 0:00:30]} c6 {[%emt 0:00:30]} 2. d4 {[%emt 0:00:00]} d5 {[%emt 0:00:00]} 3. exd5 {[%emt 0:00:00]} cxd5 {[%emt 0:00:00]} 4. c4 {[%emt 0:00:00]} Nf6 {[%emt 0:00:30]} 5. Nc3 {[%emt 0:00:00]} Nc6 {[%emt 0:01:30]} 6. Nf3 {[%emt 0:00:30]} g6 {[%emt 0:00:30]} 7. cxd5 {[%emt 0:02:30]} Nxd5 {[%emt 0:00:30]} 8. Qb3 {[%emt 0:00:30]} Nxc3 {[%emt 0:01:30]} 9. bxc3 {[%emt 0:00:30]} Bg7 {[%emt 0:02:30]} 10. Be2 {[%emt 0:10:30]} O-O {[%emt 0:02:30]} 11. Ba3 {[%emt 0:06:30]} Qc7 {[%emt 0:08:30]} 12. O-O {[%emt 0:02:30]} Be6 {[%emt 0:02:30]} 13. Qb5 {[%emt 0:13:30]} Rfd8 {[%emt 0:11:30]} 14. Rfd1 {[%emt 0:06:30]} Bd5 {[%emt 0:10:30]} 15. Rab1 {[%emt 0:07:30]} Rac8 {[%emt 0:14:30]} 16. Rd2 {[%emt 0:05:30]} b6 {[%emt 0:04:30]} 17. Qa4 {[%emt 0:14:30]} Na5 {[%emt 0:09:30]} 18. Ba6 {[%emt 0:08:02]} Nc4 {[%emt 0:05:30]} 19. Bxc4 {[%emt 0:01:38]} Bxc4 {[%emt 0:01:30]} 20. Re1 {[%emt 0:00:31]} e6 {[%emt 0:00:30]} 21. Bb2 {[%emt 0:02:34]} Rd5 {[%emt 0:03:32]} 22. a3 {[%emt 0:01:39]} Rb5 {[%emt 0:02:09]} 23. Qc2 {[%emt 0:01:59]} Bh6 {[%emt 0:00:44]} 24. Re3 {[%emt 0:04:23]} Bd5 {[%emt 0:02:33]} 25. Rdd3 {[%emt 0:02:05]} Bb3 {[%emt 0:04:09]} 26. Qc1 {[%emt 0:02:15]} Bc4 {[%emt 0:00:27]} 27. Rd1 {[%emt 0:01:07]} Be2 {[%emt 0:00:49]} 28. Re1 {[%emt 0:02:34]} Bxf3 {[%emt 0:00:27]} 29. gxf3 {[%emt 0:00:06]} Rh5 {[%emt 0:00:43]} 30. Kf1 {[%emt 0:00:36]} Rxh2 {[%emt 0:00:42]} 31. Ke2 {[%emt 0:00:30]} Qc4+ {[%emt 0:00:23]} 0-1

[Event "ESTCC 50 2019"]
[Site "Mali Losinj"]
[Date "2019.09.20"]
[Round "3.18"]
[White "Wegerer, Fred"]
[Black "Mashayekh, Majid"]
[Result "1-0"]
[ECO "D35"]
[WhiteElo "2171"]
[BlackElo "1875"]
[Annotator "NA"]
[PlyCount "69"]
[EventDate "2019.09.18"]
[EventType "team-tourn"]
[EventCountry "CRO"]
[SourceTitle "playchess.com"]
[Source "ChessBase"]
[SourceQuality "1"]
[WhiteTeam "Austria"]
[BlackTeam "England"]
[WhiteTeamCountry "AUT"]
[BlackTeamCountry "ENG"]
[TimeControl "40/5400+30:1800+30"]

1. c4 {[%emt 0:00:30]} Nf6 {[%emt 0:00:30]} 2. g3 {[%emt 0:01:30]} e6 {[%emt 0:00:30]} 3. Bg2 {[%emt 0:00:30]} d5 {[%emt 0:00:30]} 4. Nf3 {[%emt 0:01:30]} Be7 {[%emt 0:02:30]} 5. d4 {[%emt 0:04:30]} O-O {[%emt 0:01:30]} 6. cxd5 {[%emt 0:02:30]} exd5 {[%emt 0:01:30]} 7. Nc3 {[%emt 0:00:30]} c6 {[%emt 0:01:30]} 8. Qc2 {[%emt 0:02:30]} Bg4 {[%emt 0:03:30]} 9. O-O {[%emt 0:13:30]} Qc8 {[%emt 0:05:30]} 10. Bf4 {[%emt 0:05:30]} Nh5 {[%emt 0:04:30]} 11. Bd2 {[%emt 0:14:30]} Na6 {[%emt 0:05:30]} 12. Rac1 {[%emt 0:06:30]} Bh3 {[%emt 0:20:30]} 13. Qb3 {[%emt 0:12:30]} Nc7 {[%emt 0:02:30]} 14. Bxh3 {[%emt 0:02:30]} Qxh3 {[%emt 0:02:30]} 15. Qxb7 {[%emt 0:00:30]} Bd6 {[%emt 0:06:30]} 16. Qxc6 {[%emt 0:00:30]} Rad8 {[%emt 0:04:30]} 17. Nb5 {[%emt 0:09:48]} Nxb5 {[%emt 0:06:30]} 18. Qxb5 {[%emt 0:00:03]} Bb8 {[%emt 0:03:30]} 19. Qd3 {[%emt 0:00:23]} h6 {[%emt 0:00:30]} 20. Ne1 {[%emt 0:11:51]} Nf6 {[%emt 0:04:30]} 21. Bf4 {[%emt 0:02:25]} Bxf4 {[%emt 0:08:13]} 22. gxf4 {[%emt 0:00:11]} Qg4+ {[%emt 0:00:24]} 23. Ng2 {[%emt 0:00:37]} Rfe8 {[%emt 0:01:01]} 24. Rc2 {[%emt 0:00:55]} Rb8 {[%emt 0:04:07]} 25. Rfc1 {[%emt 0:01:47]} Re7 {[%emt 0:02:26]} 26. Qg3 {[%emt 0:01:16]} Rxe2 {[%emt 0:04:11]} 27. Qxg4 {[%emt 0:00:08]} Rxc2 {[%emt 0:00:25]} 28. Qd1 {[%emt 0:00:34]} Rcxb2 {[%emt 0:00:32]} 29. Ne3 {[%emt 0:00:53]} Rxa2 {[%emt 0:00:53]} 30. Rc2 {[%emt 0:00:55]} Ra3 {[%emt 0:00:32]} 31. Qc1 {[%emt 0:00:27]} Rab3 {[%emt 0:01:40]} 32. Rc8+ {[%emt 0:00:03]} Kh7 {[%emt 0:00:18]} 33. Rxb8 {[%emt 0:00:11]} Rxb8 {[%emt 0:00:09]} 34. Kg2 {[%emt 0:00:34]} Rb4 {[%emt 0:00:34]} 35. Qc5 {[%emt 0:00:28]} 1-0

[Event "ESTCC 50 2019"]
[Site "Mali Losinj"]
[Date "2019.09.20"]
[Round "3.19"]
[White "Wood, Peter R"]
[Black "Kainz, Josef"]
[Result "1/2-1/2"]
[ECO "B25"]
[WhiteElo "1884"]
[BlackElo "1922"]
[Annotator "NA"]
[PlyCount "97"]
[EventDate "2019.09.18"]
[EventType "team-tourn"]
[EventCountry "CRO"]
[SourceTitle "playchess.com"]
[Source "ChessBase"]
[SourceQuality "1"]
[WhiteTeam "England"]
[BlackTeam "Austria"]
[WhiteTeamCountry "ENG"]
[BlackTeamCountry "AUT"]
[TimeControl "40/5400+30:1800+30"]

1. e4 {[%emt 0:00:30]} c5 {[%emt 0:00:30]} 2. Nc3 {[%emt 0:00:00]} Nc6 {[%emt 0:00:00]} 3. g3 {[%emt 0:00:00]} g6 {[%emt 0:00:00]} 4. Bg2 {[%emt 0:00:30]} Bg7 {[%emt 0:00:00]} 5. d3 {[%emt 0:00:00]} d6 {[%emt 0:00:00]} 6. f4 {[%emt 0:00:00]} e6 {[%emt 0:00:30]} 7. Nf3 {[%emt 0:01:30]} Nge7 {[%emt 0:00:00]} 8. Be3 {[%emt 0:00:30]} O-O {[%emt 0:00:00]} 9. O-O {[%emt 0:00:30]} b5 {[%emt 0:00:30]} 10. e5 {[%emt 0:11:30]} b4 {[%emt 0:00:30]} 11. Ne4 {[%emt 0:06:30]} dxe5 {[%emt 0:00:30]} 12. fxe5 {[%emt 0:02:30]} Nxe5 {[%emt 0:00:30]} 13. Nxe5 {[%emt 0:01:30]} Bxe5 {[%emt 0:00:00]} 14. Nf6+ {[%emt 0:31:30]} Bxf6 {[%emt 0:01:00]} 15. Rxf6 {[%emt 0:00:30]} Nd5 {[%emt 0:08:30]} 16. Bg5 {[%emt 0:01:30]} Nxf6 {[%emt 0:13:30]} 17. Bxa8 {[%emt 0:10:30]} Qd4+ {[%emt 0:00:30]} 18. Kg2 {[%emt 0:00:30]} Nd5 {[%emt 0:07:30]} 19. Qd2 {[%emt 0:04:30]} Bd7 {[%emt 0:04:30]} 20. c3 {[%emt 0:04:30]} bxc3 {[%emt 0:02:30]} 21. bxc3 {[%emt 0:00:30]} Qxc3 {[%emt 0:08:30]} 22. Qxc3 {[%emt 0:01:30]} Nxc3 {[%emt 0:00:30]} 23. Bf3 {[%emt 0:00:30]} Rb8 {[%emt 0:20:30]} 24. Bf6 {[%emt 0:04:56]} Rb2+ {[%emt 0:08:30]} 25. Kg1 {[%emt 0:06:49]} Rb1+ {[%emt 0:05:12]} 26. Rxb1 {[%emt 0:00:17]} Nxb1 {[%emt 0:00:02]} 27. Be7 {[%emt 0:00:20]} Nc3 {[%emt 0:03:12]} 28. Bxc5 {[%emt 0:00:29]} a6 {[%emt 0:01:50]} 29. a3 {[%emt 0:01:10]} e5 {[%emt 0:08:42]} 30. Kf2 {[%emt 0:00:47]} Bb5 {[%emt 0:01:05]} 31. Ke3 {[%emt 0:00:53]} f5 {[%emt 0:01:25]} 32. Bd6 {[%emt 0:01:55]} e4 {[%emt 0:03:51]} 33. dxe4 {[%emt 0:00:27]} Nxe4 {[%emt 0:00:54]} 34. Bxe4 {[%emt 0:00:12]} fxe4 {[%emt 0:00:01]} 35. Kxe4 {[%emt 0:00:12]} Kf7 {[%emt 0:00:08]} 36. Be5 {[%emt 0:01:25]} Ke6 {[%emt 0:00:52]} 37. Bf4 {[%emt 0:00:36]} Bc6+ {[%emt 0:00:30]} 38. Kd4 {[%emt 0:00:16]} Kf5 {[%emt 0:00:12]} 39. h4 {[%emt 0:00:48]} Kg4 {[%emt 0:00:20]} 40. Kc5 {[%emt 0:00:18]} Bb5 {[%emt 0:00:10]} 41. Kb6 {[%emt 0:30:17]} Kh5 {[%emt 0:30:20]} 42. a4 {[%emt 0:00:19]} Be2 {[%emt 0:00:45]} 43. Kc5 {[%emt 0:00:35]} h6 {[%emt 0:00:13]} 44. Kb6 {[%emt 0:01:19]} g5 {[%emt 0:00:13]} 45. hxg5 {[%emt 0:00:07]} hxg5 {[%emt 0:00:04]} 46. Bd6 {[%emt 0:00:22]} Kg4 {[%emt 0:00:17]} 47. Be7 {[%emt 0:00:22]} Kf5 {[%emt 0:01:13]} 48. Bd8 {[%emt 0:01:37]} g4 {[%emt 0:00:22]} 49. Bc7 {[%emt 0:00:22]} 1/2-1/2

[Event "ESTCC 50 2019"]
[Site "Mali Losinj"]
[Date "2019.09.20"]
[Round "3.20"]
[White "Detter, Peter"]
[Black "Denning, Julie L"]
[Result "1-0"]
[ECO "E91"]
[WhiteElo "1982"]
[BlackElo "1629"]
[Annotator "NA"]
[PlyCount "45"]
[EventDate "2019.09.18"]
[EventType "team-tourn"]
[EventCountry "CRO"]
[SourceTitle "playchess.com"]
[Source "ChessBase"]
[SourceQuality "1"]
[WhiteTeam "Austria"]
[BlackTeam "England"]
[WhiteTeamCountry "AUT"]
[BlackTeamCountry "ENG"]
[TimeControl "40/5400+30:1800+30"]

1. d4 {[%emt 0:00:30]} Nf6 {[%emt 0:00:30]} 2. c4 {[%emt 0:00:00]} g6 {[%emt 0:00:00]} 3. Nc3 {[%emt 0:00:00]} Bg7 {[%emt 0:00:00]} 4. e4 {[%emt 0:00:30]} d6 {[%emt 0:00:00]} 5. Nf3 {[%emt 0:00:00]} O-O {[%emt 0:00:00]} 6. Be2 {[%emt 0:00:00]} Nbd7 {[%emt 0:00:30]} 7. O-O {[%emt 0:00:30]} c5 {[%emt 0:03:30]} 8. d5 {[%emt 0:00:30]} Nb6 {[%emt 0:08:30]} 9. h3 {[%emt 0:02:30]} Bd7 {[%emt 0:02:30]} 10. Bg5 {[%emt 0:05:30]} Qc8 {[%emt 0:05:30]} 11. a4 {[%emt 0:04:30]} a5 {[%emt 0:01:30]} 12. Qd2 {[%emt 0:01:30]} Re8 {[%emt 0:01:30]} 13. Bh6 {[%emt 0:04:30]} Bh8 {[%emt 0:00:30]} 14. Ng5 {[%emt 0:01:30]} e6 {[%emt 0:10:30]} 15. Qf4 {[%emt 0:14:30]} exd5 {[%emt 0:10:30]} 16. cxd5 {[%emt 0:01:30]} Qc7 {[%emt 0:06:30]} 17. Nf3 {[%emt 0:12:30]} Nc8 {[%emt 0:12:30]} 18. Bg5 {[%emt 0:06:30]} Nh5 {[%emt 0:07:30]} 19. Qh4 {[%emt 0:01:30]} Ng7 {[%emt 0:06:30]} 20. Bf6 {[%emt 0:03:30]} Nh5 {[%emt 0:06:26]} 21. Bxh8 {[%emt 0:00:30]} Kxh8 {[%emt 0:00:09]} 22. g4 {[%emt 0:06:30]} Nf6 {[%emt 0:05:09]} 23. Qxf6+ {[%emt 0:00:30]} 1-0